[Event "MČR v bleskovém šachu družstev 2019"]
[Site "Teplice, Czech Republic"]
[Date "2019.09.14"]
[Round "8.25"]
[White "Istona, Martin"]
[Black "Formanek, Martin"]
[Result "0-1"]
[TimeControl "3 mim. + 2 s"]
[WhiteTitle "FM"]
[WhiteFideId "14923475"]
[BlackFideId "316768"]
[WhiteElo "2078"]
[BlackElo "2230"]

1. e4 {[%clk 00:03:02]} {[%emt 00:00:02]} c5 {[%clk 00:03:03]} 2. Nf3 {[%clk
00:03:03]} {[%emt 00:00:01]} d6 {[%clk 00:03:04]} {[%emt 00:00:01]} 3. d4
{[%clk 00:03:04]} cxd4 {[%clk 00:03:06]} 4. Nxd4 {[%clk 00:03:05]} {[%emt
00:00:02]} Nf6 {[%clk 00:03:07]} {[%emt 00:00:01]} 5. Nc3 {[%clk 00:03:07]} a6
{[%clk 00:03:08]} {[%emt 00:00:02]} 6. h3 {[%clk 00:03:08]} e6 {[%clk
00:03:02]} {[%emt 00:00:08]} 7. g4 {[%clk 00:03:08]} {[%emt 00:00:02]} d5
{[%clk 00:03:03]} 8. exd5 {[%clk 00:02:22]} {[%emt 00:00:49]} Nxd5 {[%clk
00:03:03]} {[%emt 00:00:02]} 9. Bd2 {[%clk 00:02:20]} {[%emt 00:00:03]} Nc6
{[%clk 00:02:47]} {[%emt 00:00:19]} 10. Nxc6 {[%clk 00:02:19]} {[%emt
00:00:02]} bxc6 {[%clk 00:02:48]} 11. Bg2 {[%clk 00:02:18]} {[%emt 00:00:03]}
Qc7 {[%clk 00:02:28]} {[%emt 00:00:22]} 12. Ne4 {[%clk 00:02:11]} {[%emt
00:00:09]} Be7 {[%clk 00:02:25]} {[%emt 00:00:05]} 13. c4 {[%clk 00:01:41]}
{[%emt 00:00:32]} Nf6 {[%clk 00:02:17]} {[%emt 00:00:10]} 14. Bc3 {[%clk
00:01:26]} {[%emt 00:00:17]} O-O {[%clk 00:02:02]} {[%emt 00:00:17]} 15. Nxf6+
{[%clk 00:01:21]} {[%emt 00:00:08]} Bxf6 {[%clk 00:01:56]} {[%emt 00:00:08]} 16.
Bxf6 gxf6 {[%clk 00:01:56]} 17. O-O {[%clk 00:01:19]} {[%emt 00:00:04]} Bb7
{[%clk 00:01:50]} {[%emt 00:00:08]} 18. c5 {[%clk 00:00:55]} {[%emt 00:00:25]}
Qe5 {[%clk 00:01:43]} {[%emt 00:00:09]} 19. Qc2 {[%clk 00:00:55]} {[%emt
00:00:02]} Rad8 {[%clk 00:01:36]} {[%emt 00:00:09]} 20. Rfe1 {[%clk 00:00:56]}
{[%emt 00:00:02]} Qf4 {[%clk 00:01:19]} {[%emt 00:00:18]} 21. Rad1 {[%clk
00:00:51]} {[%emt 00:00:07]} Kg7 {[%clk 00:01:08]} {[%emt 00:00:14]} 22. Qc3
{[%clk 00:00:44]} {[%emt 00:00:09]} Qg5 {[%clk 00:00:48]} {[%emt 00:00:21]} 23.
Rd6 {[%clk 00:00:14]} {[%emt 00:00:32]} Rxd6 {[%clk 00:00:43]} {[%emt
00:00:07]} 24. cxd6 {[%clk 00:00:15]} Rd8 {[%clk 00:00:43]} {[%emt 00:00:02]}
25. Rd1 {[%clk 00:00:15]} {[%emt 00:00:02]} Qe5 {[%clk 00:00:37]} {[%emt
00:00:08]} 26. Qb4 {[%clk 00:00:09]} {[%emt 00:00:08]} Qb5 {[%clk 00:00:35]}
{[%emt 00:00:04]} 27. Qc3 {[%clk 00:00:07]} {[%emt 00:00:04]} c5 {[%clk
00:00:32]} {[%emt 00:00:06]} 28. Bxb7 {[%clk 00:00:07]} {[%emt 00:00:02]} Qxb7
{[%clk 00:00:33]} {[%emt 00:00:01]} 29. g5 {[%clk 00:00:08]} e5 {[%clk
00:00:30]} {[%emt 00:00:05]} 30. gxf6+ {[%clk 00:00:09]} {[%emt 00:00:01]} Kxf6
{[%clk 00:00:31]} 31. Kf1 {[%clk 00:00:05]} {[%emt 00:00:06]} Qh1+ {[%clk
00:00:30]} {[%emt 00:00:03]} 32. Ke2 {[%clk 00:00:07]} Qe4+ {[%clk 00:00:31]}
{[%emt 00:00:02]} 33. Qe3 {[%clk 00:00:05]} {[%emt 00:00:04]} Qxe3+ 34. Kxe3
{[%clk 00:00:06]} Ke6 {[%clk 00:00:29]} {[%emt 00:00:01]} 35. Ke4 {[%clk
00:00:07]} f5+ {[%clk 00:00:31]} {[%emt 00:00:01]} 36. Kf3 {[%clk 00:00:09]}
Rxd6 37. Rc1 Kd5 {[%clk 00:00:29]} {[%emt 00:00:05]} 38. b3 {[%clk 00:00:10]}
{[%emt 00:00:02]} Rh6 {[%clk 00:00:28]} {[%emt 00:00:02]} 39. Kg2 {[%clk
00:00:11]} {[%emt 00:00:02]} Rh4 {[%clk 00:00:29]} {[%emt 00:00:01]} 40. Rd1+
{[%clk 00:00:13]} Rd4 {[%clk 00:00:30]} 41. Rc1 {[%clk 00:00:14]} Rd2 {[%clk
00:00:31]} 42. a4 {[%clk 00:00:08]} {[%emt 00:00:08]} Rd3 {[%clk 00:00:29]}
{[%emt 00:00:04]} 43. Rb1 {[%clk 00:00:09]} {[%emt 00:00:01]} f4 {[%clk
00:00:28]} {[%emt 00:00:03]} 44. h4 {[%clk 00:00:10]} {[%emt 00:00:01]} e4
{[%clk 00:00:29]} {[%emt 00:00:01]} 45. b4 {[%clk 00:00:09]} {[%emt 00:00:03]}
c4 {[%clk 00:00:30]} 46. b5 {[%clk 00:00:11]} {[%emt 00:00:01]} axb5 {[%clk
00:00:30]} {[%emt 00:00:01]} 47. axb5 {[%clk 00:00:12]} Rb3 {[%clk 00:00:31]}
{[%emt 00:00:01]} 48. Rd1+ {[%clk 00:00:13]} Ke5 {[%clk 00:00:32]} {[%emt
00:00:01]} 49. Rd7 {[%clk 00:00:12]} {[%emt 00:00:03]} Rxb5 {[%clk 00:00:33]}
{[%emt 00:00:02]} 50. Rxh7 {[%clk 00:00:13]} {[%emt 00:00:01]} Rb2 {[%clk
00:00:34]} 51. Kg1 {[%clk 00:00:10]} {[%emt 00:00:05]} c3 {[%clk 00:00:34]}
{[%emt 00:00:02]} 52. Rc7 {[%clk 00:00:10]} {[%emt 00:00:02]} Kd4 {[%clk
00:00:35]} 53. Rd7+ {[%clk 00:00:11]} {[%emt 00:00:02]} Kc4 {[%clk 00:00:36]}
{[%emt 00:00:01]} 54. Rc7+ {[%clk 00:00:12]} Kd3 {[%clk 00:00:37]} 55. Rd7+
{[%clk 00:00:12]} {[%emt 00:00:02]} Ke2 {[%clk 00:00:38]} {[%emt 00:00:01]} 56.
Kg2 {[%clk 00:00:08]} {[%emt 00:00:06]} c2 {[%clk 00:00:39]} {[%emt 00:00:01]}
57. Rc7 {[%clk 00:00:09]} Kd1 {[%clk 00:00:39]} {[%emt 00:00:01]} 58. Rd7+
{[%clk 00:00:09]} {[%emt 00:00:03]} Kc1 {[%clk 00:00:40]} {[%emt 00:00:01]} 59.
h5 {[%clk 00:00:10]} {[%emt 00:00:01]} Kb1 {[%clk 00:00:40]} {[%emt 00:00:02]}
0-1

[Event "MČR v bleskovém šachu družstev 2019"]
[Site "Teplice, Czech Republic"]
[Date "2019.09.14"]
[Round "8.26"]
[White "Dvorak, Jan"]
[Black "Markovic, Milan"]
[Result "1-0"]
[TimeControl "3 mim. + 2 s"]
[WhiteFideId "314870"]
[BlackFideId "305103"]
[WhiteElo "2229"]
[BlackElo "2113"]

1. c4 {[%clk 00:03:02]} {[%emt 00:00:02]} Nf6 {[%clk 00:03:03]} {[%emt
00:00:02]} 2. Nc3 {[%clk 00:03:02]} {[%emt 00:00:01]} c5 {[%clk 00:03:03]}
{[%emt 00:00:02]} 3. g3 {[%clk 00:03:04]} d5 {[%clk 00:03:04]} {[%emt
00:00:01]} 4. cxd5 {[%clk 00:03:04]} {[%emt 00:00:03]} Nxd5 {[%clk 00:03:05]} 5.
Bg2 {[%clk 00:03:05]} Nc7 {[%clk 00:03:06]} {[%emt 00:00:02]} 6. Nf3 {[%clk
00:03:04]} {[%emt 00:00:03]} Nc6 {[%clk 00:03:06]} 7. O-O {[%clk 00:03:02]}
{[%emt 00:00:05]} e5 {[%clk 00:03:07]} 8. a3 {[%clk 00:03:02]} {[%emt
00:00:01]} Be7 {[%clk 00:02:39]} {[%emt 00:00:30]} 9. b4 {[%clk 00:02:58]}
{[%emt 00:00:06]} cxb4 10. axb4 {[%clk 00:02:59]} Bxb4 {[%clk 00:02:40]} {[%emt
00:00:02]} 11. Nxe5 {[%clk 00:02:50]} {[%emt 00:00:12]} Nxe5 {[%clk 00:02:40]}
{[%emt 00:00:02]} 12. Qa4+ {[%clk 00:02:51]} Nc6 {[%clk 00:02:38]} {[%emt
00:00:04]} 13. Bxc6+ {[%clk 00:02:50]} {[%emt 00:00:03]} bxc6 {[%clk 00:02:39]}
{[%emt 00:00:01]} 14. Qxb4 {[%clk 00:02:51]} {[%emt 00:00:01]} Qe7 {[%clk
00:02:30]} {[%emt 00:00:11]} 15. Qxe7+ {[%clk 00:02:46]} {[%emt 00:00:06]} Kxe7
{[%clk 00:02:32]} 16. Ba3+ {[%clk 00:02:47]} {[%emt 00:00:02]} Kd7 {[%clk
00:02:26]} {[%emt 00:00:07]} 17. Ne4 {[%clk 00:02:41]} {[%emt 00:00:08]} Ne6
{[%clk 00:02:27]} 18. e3 {[%clk 00:02:24]} {[%emt 00:00:19]} Ba6 {[%clk
00:02:28]} {[%emt 00:00:01]} 19. Rfc1 {[%clk 00:02:23]} {[%emt 00:00:03]} Bb5
{[%clk 00:02:22]} {[%emt 00:00:09]} 20. d4 {[%clk 00:02:09]} {[%emt 00:00:16]}
f5 {[%clk 00:02:12]} {[%emt 00:00:12]} 21. Nd6 {[%clk 00:02:08]} {[%emt
00:00:02]} g6 {[%clk 00:01:55]} {[%emt 00:00:20]} 22. d5 {[%clk 00:02:01]}
{[%emt 00:00:08]} Ng5 {[%clk 00:01:39]} {[%emt 00:00:18]} 23. Rd1 {[%clk
00:01:39]} {[%emt 00:00:24]} Be2 {[%clk 00:01:26]} {[%emt 00:00:15]} 24. dxc6+
{[%clk 00:01:40]} Ke6 {[%clk 00:01:14]} {[%emt 00:00:14]} 25. Rdc1 {[%clk
00:01:36]} {[%emt 00:00:06]} Ne4 {[%clk 00:01:03]} {[%emt 00:00:14]} 26. Nxe4
{[%clk 00:01:33]} {[%emt 00:00:05]} fxe4 {[%clk 00:01:04]} {[%emt 00:00:01]} 27.
Bc5 {[%clk 00:01:28]} {[%emt 00:00:06]} a6 {[%clk 00:00:53]} {[%emt 00:00:13]}
28. c7 {[%clk 00:01:20]} {[%emt 00:00:10]} Bb5 {[%clk 00:00:23]} {[%emt
00:00:32]} 29. Rd1 {[%clk 00:01:07]} {[%emt 00:00:16]} Bd3 {[%clk 00:00:16]}
{[%emt 00:00:09]} 30. Bb6 {[%clk 00:01:04]} {[%emt 00:00:04]} Kd5 {[%clk
00:00:14]} {[%emt 00:00:05]} 31. Rdc1 {[%clk 00:01:03]} {[%emt 00:00:03]} Rhc8
{[%clk 00:00:13]} {[%emt 00:00:03]} 32. Ra5+ {[%clk 00:01:01]} {[%emt
00:00:03]} Bb5 {[%clk 00:00:13]} {[%emt 00:00:02]} 33. Rc5+ {[%emt 00:00:06]}
Kd6 {[%emt 00:00:01]} 34. Ra1 {[%clk 00:00:50]} {[%emt 00:00:07]} Bd3 {[%clk
00:00:10]} {[%emt 00:00:08]} 35. f3 {[%clk 00:00:47]} {[%emt 00:00:05]} a5
{[%emt 00:00:10]} 36. fxe4 {[%emt 00:00:09]} a4 {[%emt 00:00:02]} 37. e5+
{[%emt 00:00:02]} 1-0

[Event "MČR v bleskovém šachu družstev 2019"]
[Site "Teplice, Czech Republic"]
[Date "2019.09.14"]
[Round "8.27"]
[White "Srba, Milan"]
[Black "Chmel, Kristian"]
[Result "0-1"]
[TimeControl "3 mim. + 2 s"]
[WhiteFideId "321575"]
[BlackFideId "344281"]
[WhiteElo "2195"]
[BlackElo "2097"]

1. e4 {[%clk 00:03:02]} {[%emt 00:00:02]} e5 {[%clk 00:03:03]} {[%emt
00:00:01]} 2. Nf3 {[%clk 00:03:02]} {[%emt 00:00:01]} Nc6 {[%clk 00:03:03]}
{[%emt 00:00:02]} 3. d4 {[%clk 00:03:03]} {[%emt 00:00:01]} exd4 {[%clk
00:03:03]} {[%emt 00:00:03]} 4. Nxd4 {[%clk 00:03:04]} {[%emt 00:00:01]} Nf6
{[%clk 00:03:01]} {[%emt 00:00:04]} 5. Nc3 {[%clk 00:03:04]} Nxe4 {[%clk
00:03:01]} {[%emt 00:00:03]} 6. Nxc6 {[%clk 00:02:16]} {[%emt 00:00:51]} Nxc3
{[%clk 00:03:01]} {[%emt 00:00:01]} 7. Nxd8 {[%clk 00:02:15]} {[%emt 00:00:03]}
Nxd1 {[%clk 00:03:02]} {[%emt 00:00:02]} 8. Nxf7 {[%clk 00:02:15]} {[%emt
00:00:02]} Kxf7 {[%clk 00:03:02]} {[%emt 00:00:02]} 9. Bc4+ {[%clk 00:02:14]}
{[%emt 00:00:02]} Kf6 {[%clk 00:02:55]} {[%emt 00:00:08]} 10. Kxd1 {[%clk
00:02:14]} {[%emt 00:00:03]} c6 {[%clk 00:02:56]} {[%emt 00:00:01]} 11. h4
{[%clk 00:02:06]} {[%emt 00:00:10]} d5 {[%clk 00:02:49]} {[%emt 00:00:09]} 12.
Bg5+ {[%clk 00:02:06]} {[%emt 00:00:02]} Kf7 {[%clk 00:02:41]} {[%emt
00:00:10]} 13. Bb3 {[%clk 00:02:01]} {[%emt 00:00:07]} Bc5 {[%clk 00:02:29]}
{[%emt 00:00:14]} 14. Kd2 {[%clk 00:01:18]} {[%emt 00:00:45]} Bf5 {[%clk
00:02:08]} {[%emt 00:00:23]} 15. f3 {[%clk 00:01:12]} {[%emt 00:00:08]} h6
{[%clk 00:01:57]} {[%emt 00:00:13]} 16. Bf4 {[%clk 00:01:11]} {[%emt 00:00:03]}
g5 {[%clk 00:01:34]} {[%emt 00:00:25]} 17. hxg5 {[%clk 00:00:56]} {[%emt
00:00:17]} hxg5 {[%clk 00:01:34]} {[%emt 00:00:02]} 18. Bxg5 {[%clk 00:00:54]}
{[%emt 00:00:04]} Rxh1 {[%clk 00:01:12]} {[%emt 00:00:24]} 19. Rxh1 {[%clk
00:00:54]} {[%emt 00:00:02]} Rg8 {[%clk 00:01:13]} {[%emt 00:00:01]} 20. f4
{[%clk 00:00:31]} {[%emt 00:00:25]} Be4 {[%clk 00:01:14]} {[%emt 00:00:01]} 21.
Rh2 {[%clk 00:00:13]} {[%emt 00:00:20]} Bg1 {[%clk 00:01:14]} {[%emt 00:00:03]}
22. Rh6 {[%clk 00:00:10]} {[%emt 00:00:05]} Bxg2 {[%clk 00:00:57]} {[%emt
00:00:19]} 23. c4 {[%clk 00:00:11]} Re8 {[%clk 00:00:43]} {[%emt 00:00:16]} 24.
cxd5 {[%clk 00:00:11]} {[%emt 00:00:03]} cxd5 {[%clk 00:00:40]} {[%emt
00:00:05]} 25. Rh7+ {[%clk 00:00:12]} Kg6 {[%clk 00:00:38]} {[%emt 00:00:04]}
26. Rxb7 {[%clk 00:00:12]} {[%emt 00:00:02]} Be3+ {[%clk 00:00:24]} {[%emt
00:00:16]} 27. Kd3 {[%clk 00:00:07]} {[%emt 00:00:07]} Be4+ {[%clk 00:00:11]}
{[%emt 00:00:15]} 28. Ke2 {[%clk 00:00:07]} {[%emt 00:00:02]} d4 {[%clk
00:00:10]} {[%emt 00:00:02]} 29. Bf7+ {[%emt 00:00:26]} Kf5 {[%emt 00:00:05]}
30. Bxe8 {[%emt 00:00:07]} Bxb7 {[%emt 00:00:03]} 31. Kd3 {[%emt 00:00:10]} 0-1

[Event "MČR v bleskovém šachu družstev 2019"]
[Site "Teplice, Czech Republic"]
[Date "2019.09.14"]
[Round "9.1"]
[White "Vojta, Tomas"]
[Black "Kociscak, Jiri"]
[Result "1-0"]
[TimeControl "3 mim. + 2 s"]
[WhiteTitle "FM"]
[BlackTitle "IM"]
[WhiteFideId "308781"]
[BlackFideId "322121"]
[WhiteElo "2353"]
[BlackElo "2417"]

1. e4 {[%clk 00:03:02]} {[%emt 00:00:01]} e5 {[%clk 00:03:03]} {[%emt
00:00:01]} 2. Nc3 {[%clk 00:03:03]} {[%emt 00:00:01]} Nf6 {[%clk 00:03:03]}
{[%emt 00:00:02]} 3. f4 {[%clk 00:03:04]} d5 {[%clk 00:03:03]} {[%emt
00:00:02]} 4. fxe5 {[%clk 00:03:05]} {[%emt 00:00:02]} Nxe4 {[%clk 00:03:04]}
{[%emt 00:00:01]} 5. Qf3 {[%clk 00:03:04]} {[%emt 00:00:03]} Nxc3 {[%clk
00:03:03]} {[%emt 00:00:03]} 6. dxc3 {[%clk 00:03:04]} {[%emt 00:00:01]} Be7
{[%clk 00:02:56]} {[%emt 00:00:09]} 7. Bf4 {[%clk 00:03:05]} {[%emt 00:00:01]}
Be6 {[%clk 00:02:56]} {[%emt 00:00:02]} 8. O-O-O {[%clk 00:03:05]} {[%emt
00:00:02]} c6 {[%clk 00:02:44]} {[%emt 00:00:14]} 9. Qg3 {[%clk 00:03:05]}
{[%emt 00:00:02]} Rg8 {[%clk 00:02:32]} {[%emt 00:00:13]} 10. h4 {[%clk
00:03:05]} {[%emt 00:00:03]} Nd7 {[%clk 00:02:21]} {[%emt 00:00:13]} 11. Nf3
{[%clk 00:03:05]} {[%emt 00:00:02]} Qa5 {[%clk 00:02:16]} {[%emt 00:00:07]} 12.
Kb1 {[%clk 00:02:52]} {[%emt 00:00:15]} d4 {[%clk 00:02:12]} {[%emt 00:00:07]}
13. c4 {[%clk 00:02:50]} {[%emt 00:00:05]} c5 {[%clk 00:01:43]} {[%emt
00:00:30]} 14. Ng5 {[%clk 00:02:47]} {[%emt 00:00:04]} Bf5 {[%clk 00:01:43]}
{[%emt 00:00:03]} 15. Bd3 {[%clk 00:02:43]} {[%emt 00:00:06]} Bxd3 {[%clk
00:01:43]} {[%emt 00:00:02]} 16. cxd3 {[%clk 00:02:44]} {[%emt 00:00:01]} h6
{[%clk 00:01:39]} {[%emt 00:00:06]} 17. Ne4 {[%clk 00:02:44]} {[%emt 00:00:02]}
O-O-O {[%clk 00:01:39]} {[%emt 00:00:02]} 18. Rhf1 {[%clk 00:02:25]} {[%emt
00:00:20]} Qb6 {[%clk 00:01:32]} {[%emt 00:00:08]} 19. Nd6+ {[%clk 00:02:18]}
{[%emt 00:00:10]} Bxd6 {[%clk 00:01:32]} {[%emt 00:00:03]} 20. exd6 {[%clk
00:02:19]} Rde8 {[%clk 00:01:28]} {[%emt 00:00:06]} 21. Rde1 {[%clk 00:02:09]}
{[%emt 00:00:11]} Qd8 {[%clk 00:01:17]} {[%emt 00:00:12]} 22. Rxe8 {[%clk
00:02:05]} {[%emt 00:00:07]} Qxe8 {[%clk 00:01:18]} {[%emt 00:00:02]} 23. Re1
{[%clk 00:02:06]} Qd8 {[%clk 00:00:43]} {[%emt 00:00:37]} 24. Re7 {[%clk
00:02:07]} {[%emt 00:00:01]} g5 {[%clk 00:00:44]} {[%emt 00:00:01]} 25. hxg5
{[%clk 00:02:05]} {[%emt 00:00:04]} hxg5 {[%clk 00:00:45]} {[%emt 00:00:01]} 26.
Bd2 {[%clk 00:01:53]} {[%emt 00:00:14]} f6 {[%clk 00:00:33]} {[%emt 00:00:14]}
27. Qf3 {[%clk 00:01:47]} {[%emt 00:00:08]} Re8 {[%clk 00:00:24]} {[%emt
00:00:11]} 28. Qe4 {[%clk 00:01:43]} {[%emt 00:00:07]} Rh8 {[%clk 00:00:15]}
{[%emt 00:00:11]} 29. Qf5 {[%clk 00:01:30]} {[%emt 00:00:15]} Re8 {[%clk
00:00:10]} {[%emt 00:00:07]} 30. Qe6 {[%clk 00:01:30]} {[%emt 00:00:02]} Rh8
{[%clk 00:00:10]} {[%emt 00:00:02]} 31. Kc2 {[%clk 00:01:29]} {[%emt 00:00:04]}
Rf8 {[%clk 00:00:09]} {[%emt 00:00:03]} 32. Ba5 {[%clk 00:01:22]} {[%emt
00:00:09]} b6 {[%clk 00:00:08]} {[%emt 00:00:03]} 33. Be1 {[%clk 00:01:22]}
{[%emt 00:00:01]} f5 {[%clk 00:00:03]} {[%emt 00:00:07]} 34. Qd5 {[%clk
00:01:19]} {[%emt 00:00:06]} 1-0

[Event "MČR v bleskovém šachu družstev 2019"]
[Site "Teplice, Czech Republic"]
[Date "2019.09.14"]
[Round "9.2"]
[White "Polak, Tomas"]
[Black "Zeman, Matyas"]
[Result "1-0"]
[TimeControl "3 mim. + 2 s"]
[WhiteTitle "GM"]
[WhiteFideId "300560"]
[BlackFideId "364398"]
[WhiteElo "2510"]
[BlackElo "2094"]

1. d4 {[%clk 00:03:02]} {[%emt 00:00:01]} e6 {[%clk 00:03:03]} {[%emt
00:00:01]} 2. c4 {[%clk 00:03:02]} {[%emt 00:00:02]} f5 {[%clk 00:03:04]} 3.
Nc3 {[%clk 00:03:01]} {[%emt 00:00:04]} Nf6 {[%clk 00:03:05]} 4. g3 {[%clk
00:03:02]} {[%emt 00:00:02]} Be7 {[%clk 00:02:56]} {[%emt 00:00:11]} 5. Bg2
{[%clk 00:03:03]} {[%emt 00:00:01]} d5 {[%clk 00:02:56]} {[%emt 00:00:01]} 6.
Bf4 {[%clk 00:02:56]} {[%emt 00:00:09]} c6 {[%clk 00:02:47]} {[%emt 00:00:11]}
7. Nf3 {[%clk 00:02:55]} {[%emt 00:00:03]} O-O {[%clk 00:02:46]} {[%emt
00:00:02]} 8. O-O {[%clk 00:02:56]} {[%emt 00:00:02]} Nbd7 {[%clk 00:02:41]}
{[%emt 00:00:07]} 9. Rc1 {[%clk 00:02:55]} {[%emt 00:00:03]} Ne4 {[%clk
00:02:35]} {[%emt 00:00:08]} 10. Rc2 {[%clk 00:02:48]} {[%emt 00:00:09]} Nxc3
{[%clk 00:02:23]} {[%emt 00:00:13]} 11. Rxc3 {[%clk 00:02:45]} {[%emt
00:00:05]} g5 {[%clk 00:02:11]} {[%emt 00:00:14]} 12. Bc1 {[%clk 00:02:41]}
{[%emt 00:00:05]} b6 {[%clk 00:02:01]} {[%emt 00:00:12]} 13. cxd5 {[%clk
00:02:37]} {[%emt 00:00:07]} cxd5 {[%clk 00:02:01]} {[%emt 00:00:02]} 14. a3
{[%clk 00:02:09]} {[%emt 00:00:30]} Ba6 {[%clk 00:01:57]} {[%emt 00:00:05]} 15.
Qc2 {[%clk 00:02:08]} {[%emt 00:00:04]} Rc8 {[%clk 00:01:52]} {[%emt 00:00:07]}
16. Re1 {[%clk 00:02:07]} {[%emt 00:00:04]} Rxc3 {[%clk 00:01:31]} {[%emt
00:00:22]} 17. Qxc3 {[%clk 00:02:07]} {[%emt 00:00:02]} g4 {[%clk 00:01:31]}
{[%emt 00:00:02]} 18. Nd2 {[%clk 00:02:03]} {[%emt 00:00:07]} Nf6 {[%clk
00:01:08]} {[%emt 00:00:25]} 19. Nf1 {[%clk 00:01:58]} {[%emt 00:00:06]} Qc8
{[%clk 00:01:06]} {[%emt 00:00:05]} 20. Qe3 {[%clk 00:01:53]} {[%emt 00:00:07]}
Ne4 {[%clk 00:01:05]} {[%emt 00:00:03]} 21. f3 {[%clk 00:01:51]} {[%emt
00:00:04]} Bg5 {[%clk 00:01:03]} {[%emt 00:00:03]} 22. f4 {[%clk 00:01:45]}
{[%emt 00:00:09]} Bf6 {[%clk 00:01:04]} 23. Bd2 {[%clk 00:01:29]} {[%emt
00:00:19]} Qc2 {[%clk 00:01:02]} {[%emt 00:00:04]} 24. Bxe4 {[%clk 00:01:17]}
{[%emt 00:00:14]} dxe4 {[%clk 00:00:44]} {[%emt 00:00:20]} 25. Bc3 {[%clk
00:01:17]} {[%emt 00:00:02]} Rd8 {[%clk 00:00:41]} {[%emt 00:00:05]} 26. Rc1
{[%clk 00:00:59]} {[%emt 00:00:20]} Qxe2 {[%clk 00:00:41]} {[%emt 00:00:02]} 27.
Qxe2 {[%clk 00:00:55]} {[%emt 00:00:06]} Bxe2 {[%clk 00:00:42]} 28. Ne3 {[%clk
00:00:56]} {[%emt 00:00:01]} Bxd4 {[%clk 00:00:39]} {[%emt 00:00:05]} 29. Bxd4
{[%clk 00:00:57]} {[%emt 00:00:01]} Rxd4 {[%clk 00:00:40]} 30. Rc2 {[%clk
00:00:55]} {[%emt 00:00:05]} Bf3 {[%clk 00:00:25]} {[%emt 00:00:17]} 31. Kf2
{[%clk 00:00:56]} {[%emt 00:00:01]} Kf7 {[%clk 00:00:19]} {[%emt 00:00:07]} 32.
Nc4 {[%clk 00:00:57]} Rd1 {[%clk 00:00:15]} {[%emt 00:00:06]} 33. Ne5+ {[%clk
00:00:57]} {[%emt 00:00:02]} Ke7 {[%clk 00:00:17]} 34. Rc7+ {[%clk 00:00:58]}
{[%emt 00:00:02]} Kd6 {[%clk 00:00:15]} {[%emt 00:00:04]} 35. Rxa7 {[%clk
00:00:42]} {[%emt 00:00:18]} Rd2+ {[%clk 00:00:16]} 36. Ke3 {[%clk 00:00:42]}
{[%emt 00:00:02]} Rxh2 {[%clk 00:00:10]} {[%emt 00:00:08]} 37. b4 {[%clk
00:00:40]} {[%emt 00:00:04]} Re2+ {[%clk 00:00:09]} {[%emt 00:00:04]} 38. Kd4
{[%clk 00:00:41]} {[%emt 00:00:01]} Rd2+ {[%clk 00:00:10]} 39. Kc3 {[%clk
00:00:41]} {[%emt 00:00:02]} Rd3+ {[%clk 00:00:05]} {[%emt 00:00:07]} 40. Nxd3
{[%clk 00:00:30]} {[%emt 00:00:13]} exd3 {[%clk 00:00:07]} 41. Kxd3 {[%clk
00:00:30]} {[%emt 00:00:02]} e5 {[%clk 00:00:08]} 42. fxe5+ {[%clk 00:00:29]}
{[%emt 00:00:03]} Kxe5 {[%clk 00:00:09]} 43. Re7+ {[%clk 00:00:27]} {[%emt
00:00:05]} Kd5 {[%clk 00:00:07]} {[%emt 00:00:05]} 44. Rxh7 {[%clk 00:00:24]}
{[%emt 00:00:05]} f4 {[%clk 00:00:05]} {[%emt 00:00:04]} 45. Rh5+ {[%clk
00:00:22]} {[%emt 00:00:04]} Kc6 {[%clk 00:00:05]} {[%emt 00:00:01]} 46. gxf4
{[%clk 00:00:21]} {[%emt 00:00:04]} g3 {[%clk 00:00:07]} 47. Rg5 {[%emt
00:00:02]} g2 48. a4 {[%clk 00:00:16]} {[%emt 00:00:07]} 1-0